fUST/lending_fUST_20240601
["ID","MTS","AMOUNT","RATE_DAILY","PERIOD"]
[328356449,1717225846139,-500.0,0.00019178,2]
[328356451,1717225846148,-339.2121941,0.00019178,2]
[328356453,1717225846158,-151.0,0.00019178,2]
[328356455,1717225846167,-151.0,0.00019178,2]
[328356457,1717225846176,-163.006335,0.00019178,2]
[328356459,1717225846185,-198.416738,0.00019178,2]
[328356461,1717225846195,-198.416738,0.00019178,2]
[328356463,1717225846204,-198.416738,0.00019178,2]
[328356465,1717225846213,-198.416738,0.00019178,2]
[328356467,1717225846222,-198.416738,0.00019178,2]
[328356468,1717225846231,-198.416738,0.00019178,2]
[328356471,1717225846240,-198.416738,0.00019178,2]
[328356472,1717225846249,-117.06570253,0.00019178,2]
[328356475,1717225846261,-81.35103547,0.00019178,2]
[328356477,1717225846270,-198.416738,0.00019178,2]
[328356479,1717225846279,-198.416738,0.00019178,2]
[328356481,1717225846288,-198.416738,0.00019178,2]
[328356483,1717225846297,-198.416738,0.00019178,2]
[328356485,1717225846306,-198.416738,0.00019178,2]
[328356487,1717225846315,-198.416738,0.00019178,2]
[328356489,1717225846324,-198.416738,0.00019178,2]
[328356490,1717225846334,-198.416738,0.00019178,2]
[328356493,1717225846344,-198.416738,0.00019178,2]
[328356494,1717225846353,-198.416738,0.00019178,2]
[328356496,1717225846362,-198.416738,0.00019178,2]
[328356498,1717225846372,-198.416742,0.00019178,2]
[328356500,1717225846381,-151.0,0.00019178,2]
[328356502,1717225846390,-151.0,0.00019178,2]
[328356503,1717225846400,-151.0,0.00019178,2]
[328356504,1717225846411,-151.0,0.00019178,2]
[328356506,1717225846421,-151.0,0.00019178,2]
[328356508,1717225846432,-151.0,0.00019178,2]
[328356510,1717225846442,-151.0,0.00019178,2]
[328356512,1717225846451,-151.0,0.00019178,2]
[328356514,1717225846461,-151.0,0.00019178,2]
[328356516,1717225846470,-151.0,0.00019178,2]
[328356518,1717225846479,-151.0,0.00019178,2]
[328356520,1717225846492,-151.0,0.00019178,2]
[328356522,1717225846501,-151.0,0.00019178,2]
[328356524,1717225846510,-198.94816,0.00019178,2]
[328356526,1717225846520,-166.362345,0.00019178,2]
[328356527,1717225846530,-564.71249816,0.0001931,2]
[328356529,1717225846539,-1000.0,0.000205,2]
[328356531,1717225846548,-498.0,0.00020751,2]
[328356533,1717225846557,-346.62510037,0.00020798,2]
[328356602,1717225847066,-218.08739779,0.00020798,2]
[328356604,1717225847076,-926.8840543,0.00020819,2]
[328356606,1717225847085,-228.08668634,0.00021,2]
[328356608,1717225847093,-1014.33420145,0.00021,2]
[328356610,1717225847102,-4672.60766012,0.00021,2]
[328356800,1717226363764,166.666666,0.00013699,2]
[328356801,1717226624972,272.23220278,9.999e-05,2]
[328356806,1717226888767,166.666666,0.00013699,2]
[328356843,1717227032381,-272.23220278,0.00017148,2]
[328356846,1717227032391,-388.36793061,0.00017149,2]
[328356848,1717227032402,-2110.20753689,0.00017149,2]
[328356850,1717227032411,-1762.77893015,0.00017249,2]
[328356858,1717227032476,-1639.54809877,0.00017249,2]
[328356923,1717227038500,-1571.17261758,0.00017249,2]
[328356924,1717227038511,-368.85149655,0.00017249,2]
[328356925,1717227038523,-4127.864465,0.00017249,2]
[328356928,1717227042903,-912.58521062,0.00017249,2]
[328356932,1717227042915,-818.28844326,0.00017249,2]
[328356935,1717227042926,-583.31871311,0.00017249,2]
[328356937,1717227042938,-866.614638,0.00017249,2]
[328356938,1717227042949,-760.968,0.00017249,2]
[328356939,1717227042960,-1093.65,0.00017249,2]
[328356940,1717227042972,-510.72,0.00017249,2]
[328356945,1717227043595,-3048.23183607,0.00017249,2]
[328356946,1717227043605,-24900.0,0.0001725,2]
[328356947,1717227043615,-237.220117,0.00017675,2]
[328356948,1717227043624,-897.38565272,0.00018,2]
[328356949,1717227043634,-1243.45158903,0.000189,2]
[328356950,1717227043644,-333.26617007,0.00019176,2]
[328356951,1717227043654,-547.93204241,0.00019176,2]
[328356952,1717227043663,-184.00838902,0.00019176,2]
[328356953,1717227043673,-9275.61828212,0.00019177,2]
[328356954,1717227043683,-327.39233988,0.00021,2]
[328356955,1717227043693,-228.08668634,0.00021,2]
[328356956,1717227043702,-154.98450155,0.00021,2]
[328356957,1717227043712,-286.29967128,0.00021,2]
[328356958,1717227043721,-154.43981396,0.00021514,2]
[328356959,1717227043731,-2000.0,0.00021591,2]
[328356960,1717227043740,-2834.15688053,0.00021616,3]
[328356961,1717227043830,-18712.68654353,0.00021616,3]
[328357032,1717227556299,166.666666,0.00013699,2]
[328357036,1717227681084,272.23220278,9.999e-05,2]
[328357063,1717228182876,166.666666,0.00013699,2]
[328357118,1717228238487,-272.23220278,0.00018899,2]
[328357119,1717228238497,-828.96772602,0.000189,2]
[328357120,1717228238506,-3161.2895662,0.00019393,2]
[328357121,1717228238542,-1117.99191554,0.00019393,2]
[328357141,1717228241402,-3983.9,0.00019393,2]
[328357142,1717228241415,-1000.0,0.00019393,2]
[328357146,1717228241457,-148.47118424,0.00019393,2]
[328357148,1717228241467,-11071.77468486,0.00019394,2]
[328357150,1717228241479,-3743.22142762,0.00019394,2]
[328357201,1717228243657,-3873.53674341,0.00019394,2]
[328357208,1717228473402,1000.0,0.00025,30]
[328357212,1717228701826,41859.66656902,9.999e-05,2]
[328357342,1717228873825,166.666666,0.00013699,2]
[328357343,1717228876224,272.23220278,9.999e-05,2]
[328357362,1717229411459,166.666666,0.00013699,2]
[328357377,1717229432787,-272.23220278,0.00018344,2]
[328357378,1717229432798,-9411.65266598,0.00018345,2]
[328357379,1717229432807,-2557.9422314,0.00018346,2]
[328357380,1717229432816,-552.64515068,0.000189,2]
[328357381,1717229432826,-217.77958663,0.00019037,2]
[328357382,1717229432835,-438.5820313,0.00019178,4]
[328357383,1717229432845,-923.61703461,0.00019294,2]
[328357384,1717229432858,-24900.0,0.00019496,2]
[328357385,1717229432867,-282.35624908,0.00020505,2]
[328357386,1717229432877,-922.4720001,0.00020605,2]
[328357387,1717229432886,-228.08668634,0.00021,2]
[328357388,1717229432895,-282.35624908,0.00021397,2]
[328357390,1717229432905,-295.305,0.00021465,2]
[328357392,1717229432914,-16286.49892307,0.00021592,3]
[328357393,1717229432924,-282.0,0.000216,2]
[328357394,1717229432936,-3480.85098385,0.0002165,2]
[328357395,1717229432945,-460.88788972,0.00021672,2]
[328357396,1717229432954,-374.06712603,0.00021672,2]
[328357397,1717229432964,-500.0,0.00021672,2]
[328357398,1717229432973,-500.0,0.00021672,2]
[328357399,1717229432982,-525.83105898,0.00021672,2]
[328357400,1717229432991,-500.0,0.00021672,2]
[328357401,1717229433000,-1088.63669612,0.00021672,2]
[328357402,1717229433009,-500.0,0.00021672,2]
[328357403,1717229433018,-185.34567566,0.00021672,2]
[328357418,1717229439110,-903.29102046,0.00021672,2]
[328357419,1717229439120,-344.62292697,0.00021672,2]
[328357420,1717229439129,-500.0,0.00021672,2]
[328357421,1717229439139,-500.0,0.00021672,2]
[328357422,1717229439148,-1088.63669612,0.00021672,2]
[328357423,1717229439158,-500.0,0.00021672,2]
[328357424,1717229439167,-423.44938145,0.00021672,2]
[328357427,1717229439180,-506.48176332,0.00021672,2]
[328357434,1717229442025,-158.70555135,0.00021672,2]
[328357435,1717229442034,-500.0,0.00021672,2]
[328357436,1717229442045,-500.0,0.00021672,2]
[328357437,1717229442056,-1088.63669612,0.00021672,2]
[328357438,1717229442065,-500.0,0.00021672,2]
[328357439,1717229442075,-500.0,0.00021672,2]
[328357440,1717229442085,-1088.63669612,0.00021672,2]
[328357441,1717229442094,-1088.63669612,0.00021672,2]
[328357442,1717229442103,-264.10697296,0.00021672,2]
[328357443,1717229442113,-500.0,0.00021672,2]
[328357444,1717229442123,-1088.63669612,0.00021672,2]
[328357445,1717229442135,-500.0,0.00021672,2]
[328357446,1717229442144,-755.6660042,0.00021672,2]
[328357447,1717229442156,-332.97069192,0.00021672,2]
[328357448,1717229442165,-500.0,0.00021672,2]
[328357449,1717229442174,-1088.63669612,0.00021672,2]
[328357450,1717229442184,-500.0,0.00021672,2]
[328357451,1717229442194,-1088.63669612,0.00021672,2]
[328357452,1717229442203,-1088.63669612,0.00021672,2]
[328357453,1717229442212,-538.14170442,0.00021672,2]
[328357454,1717229442222,-1088.63669612,0.00021672,2]
[328357455,1717229442231,-500.0,0.00021672,2]
[328357456,1717229442241,-500.0,0.00021672,2]
[328357457,1717229442250,-500.0,0.00021672,2]
[328357458,1717229442260,-1088.63669612,0.00021672,2]
[328357459,1717229442269,-500.0,0.00021672,2]
[328357460,1717229442278,-1088.63669612,0.00021672,2]
[328357461,1717229442287,-1088.63669612,0.00021672,2]
[328357462,1717229442296,-1088.63669612,0.00021672,2]
[328357463,1717229442306,-1088.63669612,0.00021672,2]
[328357464,1717229442315,-1088.63669612,0.00021672,2]
[328357465,1717229442324,-1088.63669612,0.00021672,2]
[328357466,1717229442333,-1088.63669612,0.00021672,2]
[328357467,1717229442342,-1088.63669612,0.00021672,2]
[328357468,1717229442351,-1088.63669612,0.00021672,2]
[328357469,1717229442360,-654.47515859,0.00021672,2]
[328357519,1717229443992,-654.40941547,0.0002069,2]
[328357577,1717229791647,273.37336231,9.9e-05,2]
[328357578,1717229800705,157.89350496,9.9e-05,2]
[328357579,1717229826058,1341.31542066,9.999e-05,2]
[328357580,1717230043774,166.666666,0.00013699,2]
[328357581,1717230112867,272.23220278,9.999e-05,2]
[328357582,1717230160439,1000.0,0.00027,30]
[328357602,1717230632147,-9411.65266598,0.00018371,2]
[328357603,1717230632159,-10473.1254341,0.00018372,2]
[328357604,1717230632169,-59500.20595982,0.00018373,2]
[328357605,1717230632179,-6262.763198,0.00018375,2]
[328357606,1717230632195,-2286.18289401,0.00018375,2]
[328357607,1717230632205,-152.55653179,0.00018375,2]
[328357608,1717230632219,-59.21065502,0.00018375,2]
[328357609,1717230632228,-366.00698206,0.00018491,2]
[328357618,1717230637946,-997.0306023,0.00018491,2]
[328357619,1717230638006,-4250.841585,0.00018491,2]
[328357620,1717230638017,-1070.44797115,0.00018491,2]
[328357658,1717230643297,-645.57311509,0.00018491,2]
[328357661,1717230643803,-7929.0722063,0.00018491,2]
[328357662,1717230643812,-3427.71158997,0.00019471,2]
[328357663,1717230643822,-211.76718681,0.00019571,2]
[328357664,1717230643831,-2000.0,0.0002059,2]
[328357665,1717230643840,-225.35616813,0.00020682,2]
[328357666,1717230643849,-160.31448259,0.00020682,2]
[328357667,1717230643858,-500.0,0.00020682,2]
[328357668,1717230643867,-361.98125441,0.00020682,2]
[328357669,1717230643876,-500.0,0.00020682,2]
[328357670,1717230643885,-197.52338131,0.00020682,2]
[328357671,1717230643895,-912.82379693,0.00020682,2]
[328357672,1717230643904,-179.23209189,0.00020682,2]
[328357673,1717230643915,-500.0,0.00020682,2]
[328357674,1717230643925,-912.82379693,0.00020682,2]
[328357675,1717230643936,-912.82379693,0.00020682,2]
[328357676,1717230643947,-500.0,0.00020682,2]
[328357677,1717230643957,-912.82379693,0.00020682,2]
[328357678,1717230643967,-261.44251132,0.00020682,2]
[328357679,1717230643978,-912.82379693,0.00020682,2]
[328357680,1717230643989,-912.82379693,0.00020682,2]
[328357681,1717230644000,-912.82379693,0.00020682,2]
[328357682,1717230644010,-500.0,0.00020682,2]
[328357683,1717230644020,-912.82379693,0.00020682,2]
[328357684,1717230644029,-912.82379693,0.00020682,2]
[328357685,1717230644038,-912.82379693,0.00020682,2]
[328357686,1717230644048,-912.82379693,0.00020682,2]
[328357687,1717230644057,-912.82379693,0.00020682,2]
[328357688,1717230644067,-912.82379693,0.00020682,2]
[328357689,1717230644076,-912.82379693,0.00020682,2]
[328357690,1717230644085,-912.82379693,0.00020682,2]
[328357691,1717230644094,-912.82379693,0.00020682,2]
[328357692,1717230644104,-912.82379693,0.00020682,2]
[328357693,1717230644113,-912.82379693,0.00020682,2]
[328357694,1717230644122,-912.82379693,0.00020682,2]
[328357695,1717230644131,-912.82379693,0.00020682,2]
[328357696,1717230644141,-912.82379693,0.00020682,2]
[328357697,1717230644151,-912.82379693,0.00020682,2]
[328357698,1717230644163,-912.82379693,0.00020682,2]
[328357699,1717230644172,-912.82379693,0.00020682,2]
[328357700,1717230644181,-912.82379693,0.00020682,2]
[328357701,1717230644191,-912.82379693,0.00020682,2]
[328357702,1717230644201,-912.82379693,0.00020682,2]
[328357703,1717230644215,-912.82379693,0.00020682,2]
[328357704,1717230644224,-912.82379693,0.00020682,2]
[328357705,1717230644234,-912.82379693,0.00020682,2]
[328357706,1717230644243,-912.82379693,0.00020682,2]
[328357707,1717230644252,-151.0,0.00020683,2]
[328357708,1717230644263,-283.352428,0.00020683,2]
[328357709,1717230644272,-151.0,0.00020683,2]
[328357710,1717230644283,-151.0,0.00020683,2]
[328357711,1717230644293,-151.0,0.00020683,2]
[328357712,1717230644305,-284.971522,0.00020683,2]
[328357713,1717230644315,-160.644515,0.00020683,2]
[328357714,1717230644325,-152.306234,0.00020684,2]
[328357715,1717230644335,-151.0,0.00020684,2]
[328357716,1717230644345,-151.0,0.00020684,2]
[328357717,1717230644357,-151.0,0.00020684,2]
[328357718,1717230644366,-151.0,0.00020684,2]
[328357719,1717230644375,-151.0,0.00020684,2]
[328357720,1717230644386,-151.0,0.00020684,2]
[328357721,1717230644395,-151.0,0.00020685,2]
[328357722,1717230644409,-151.0,0.00020685,2]
[328357723,1717230644419,-151.0,0.00020685,2]
[328357724,1717230644428,-151.0,0.00020685,2]
[328357725,1717230644438,-151.0,0.00020685,2]
[328357726,1717230644449,-151.0,0.00020685,2]
[328357727,1717230644459,-224.222039,0.00020685,2]
[328357728,1717230644468,-151.0,0.00020686,2]
[328357729,1717230644480,-151.0,0.00020686,2]
[328357730,1717230644489,-151.120366,0.00020686,2]
[328357731,1717230644498,-338.187272,0.00020687,2]
[328357732,1717230644508,-338.187272,0.00020687,2]
[328357733,1717230644517,-338.187272,0.00020687,2]
[328357734,1717230644527,-338.187272,0.00020687,2]
[328357735,1717230644536,-338.187272,0.00020687,2]
[328357736,1717230644546,-338.187272,0.00020687,2]
[328357737,1717230644555,-338.187272,0.00020687,2]
[328357738,1717230644565,-338.187272,0.00020687,2]
[328357739,1717230644574,-151.0,0.00020687,2]
[328357740,1717230644584,-281.368209,0.00020687,2]
[328357741,1717230644593,-156.646034,0.00020687,2]
[328357742,1717230644603,-13812.25415767,0.00020688,7]
[328357743,1717230644614,-22687.25358771,0.00020688,2]
[328357744,1717230644624,-679.20995937,0.00020688,2]
[328357745,1717230644634,-151.0,0.00020688,2]
[328357746,1717230644644,-151.0,0.00020688,2]
[328357747,1717230644654,-264.980371,0.00020688,2]
[328357748,1717230644761,-290.37448074,0.00020688,2]
[328357749,1717230644771,-338.187272,0.00020688,2]
[328357750,1717230644780,-338.187272,0.00020688,2]
[328357751,1717230644789,-151.0,0.00020688,2]
[328357752,1717230644798,-3000.0,0.00020689,2]
[328357753,1717230644807,-2349.31088228,0.00020689,2]
[328357754,1717230644816,-338.187272,0.0002069,2]
[328357755,1717230644825,-338.187272,0.0002069,2]
[328357756,1717230644834,-338.187272,0.0002069,2]
[328357757,1717230644843,-338.187272,0.0002069,2]
[328357758,1717230644852,-338.187272,0.0002069,2]
[328357759,1717230644861,-338.187272,0.0002069,2]
[328357760,1717230644870,-151.0,0.00020748,2]
[328357761,1717230644880,-211.76718681,0.00020768,2]
[328357762,1717230644889,-228.08668634,0.00021,2]
[328357763,1717230644898,-1000.0,0.00021,5]
[328357764,1717230644907,-282.0,0.000216,2]
[328357765,1717230644916,-224.67718741,0.00021689,2]
[328357766,1717230644926,-185.61536324,0.00021689,2]
[328357767,1717230644935,-342.32539495,0.00021689,2]
[328357768,1717230644944,-1749.00514191,0.00021689,5]
[328357769,1717230644953,-338.187272,0.0002169,2]
[328357770,1717230644962,-338.187272,0.0002169,2]
[328357771,1717230644971,-338.187272,0.0002169,2]
[328357772,1717230644980,-338.187281,0.0002169,2]
[328357773,1717230644989,-151.0,0.0002169,2]
[328357774,1717230644998,-37970.0,0.0002169,3]
[328357775,1717230645007,-90484.84968139,0.00021691,2]
[328357776,1717230645017,-151.0,0.00021691,2]
[328357777,1717230645026,-150000.0,0.00021692,2]
[328357778,1717230645035,-214.475434,0.00021692,2]
[328357779,1717230645045,-156.23573304,0.0002179,2]
[328357780,1717230645054,-1499.09486295,0.0002179,2]
[328357781,1717230645063,-214.43194482,0.0002179,2]
[328357782,1717230645072,-206.93235988,0.00021791,2]
[328357783,1717230645082,-453.61538042,0.00021804,2]
[328357784,1717230645091,-409.51221885,0.00021804,2]
[328357785,1717230645100,-609.60694412,0.00021804,2]
[328357786,1717230645108,-158.88174297,0.00021804,2]
[328357787,1717230645118,-1333.29905253,0.00021805,2]
[328357788,1717230645127,-156.12223992,0.00021894,2]
[328357789,1717230645136,-698.36721899,0.00021894,2]
[328357790,1717230645145,-557.7646129,0.00021894,2]
[328357791,1717230645154,-1253.45510998,0.00021894,2]
[328357792,1717230645168,-198.08699863,0.00021894,2]
[328357793,1717230645178,-530.28695093,0.00021894,2]
[328357794,1717230645188,-1326.9205196,0.00021903,2]
[328357795,1717230645197,-372.36746596,0.00021914,2]
[328357796,1717230645206,-155.0,0.00021915,2]
[328357797,1717230645215,-326.17117631,0.00021915,2]
[328357798,1717230645224,-320.44032546,0.00021915,2]
[328357799,1717230645234,-300.77720501,0.00021915,2]
[328357800,1717230645244,-394.77098835,0.00021915,2]
[328357801,1717230645254,-380.0,0.00021915,2]
[328357802,1717230645266,-155.10763118,0.00021915,2]
[328357803,1717230645278,-155.29514495,0.00021915,2]
[328357804,1717230645288,-458.14168421,0.00021915,2]
[328357805,1717230645297,-187.86881102,0.00021915,2]
[328357806,1717230645307,-189.81306767,0.00021915,2]
[328357807,1717230645316,-163.72208253,0.00021915,2]
[328357808,1717230645327,-1900.6139369,0.00021915,2]
[328357809,1717230645336,-351.39703125,0.00021916,2]
[328357810,1717230645346,-500.0,0.00021917,2]
[328357811,1717230645355,-500.0,0.00021917,2]
[328357813,1717230645364,-1000.0,0.00021917,2]
[328357814,1717230645374,-500.0,0.00021917,2]
[328357815,1717230645383,-500.0,0.00021917,2]
[328357816,1717230645392,-500.0,0.00021917,2]
[328357817,1717230645403,-500.0,0.00021917,2]
[328357818,1717230645414,-500.0,0.00021917,2]
[328357819,1717230645423,-500.0,0.00021917,2]
[328357820,1717230645432,-500.0,0.00021917,2]
[328357821,1717230645443,-500.0,0.00021917,2]
[328357822,1717230645452,-500.0,0.00021917,2]
[328357823,1717230645462,-500.0,0.00021917,2]
[328357824,1717230645471,-500.0,0.00021917,2]
[328357825,1717230645482,-500.0,0.00021917,2]
[328357826,1717230645491,-500.0,0.00021917,2]
[328357827,1717230645500,-500.0,0.00021917,2]
[328357828,1717230645510,-518.57,0.00021917,2]
[328357829,1717230645519,-500.0,0.00021917,2]
[328357830,1717230645529,-500.0,0.00021917,2]
[328357831,1717230645538,-500.0,0.00021917,2]
[328357832,1717230645548,-500.0,0.00021917,2]
[328357833,1717230645557,-517.72332047,0.00021917,2]
[328357834,1717230645566,-200.0,0.00021917,2]
[328357835,1717230645576,-371.61497995,0.00021917,2]
[328357836,1717230645585,-500.0,0.00021917,2]
[328357837,1717230645594,-714.07,0.00021917,2]
[328357838,1717230645604,-570.77,0.00021917,2]
[328357839,1717230645613,-500.0,0.00021917,2]
[328357840,1717230645623,-500.0,0.00021917,2]
[328357841,1717230645633,-500.0,0.00021917,2]
[328357842,1717230645642,-757.63,0.00021917,2]
[328357843,1717230645652,-500.0,0.00021917,2]
[328357844,1717230645661,-500.0,0.00021917,2]
[328357845,1717230645671,-500.0,0.00021917,2]
[328357846,1717230645680,-500.0,0.00021917,2]
[328357847,1717230645689,-500.0,0.00021917,2]
[328357848,1717230645698,-500.0,0.00021917,2]
[328357849,1717230645708,-500.0,0.00021917,2]
[328357850,1717230645718,-2506.1,0.00021917,2]
[328357851,1717230645727,-500.0,0.00021917,2]
[328357852,1717230645736,-500.0,0.00021917,2]
[328357853,1717230645746,-500.0,0.00021917,2]
[328357854,1717230645755,-500.0,0.00021917,2]
[328357855,1717230645764,-500.0,0.00021917,2]
[328357856,1717230645774,-875.81,0.00021917,2]
[328357857,1717230645783,-317.07,0.00021917,2]
[328357858,1717230645792,-500.0,0.00021917,2]
[328357859,1717230645802,-500.0,0.00021917,2]
[328357860,1717230645811,-500.0,0.00021917,2]
[328357861,1717230645821,-500.0,0.00021917,2]
[328357862,1717230645903,-540.18070168,0.00021917,2]
[328357863,1717230645913,-500.0,0.00021917,2]
[328357864,1717230645922,-500.0,0.00021917,2]
[328357865,1717230645931,-500.0,0.00021917,2]
[328357866,1717230645941,-500.0,0.00021917,2]
[328357867,1717230645950,-500.0,0.00021917,2]
[328357868,1717230645960,-500.0,0.00021917,2]
[328357872,1717230645970,-518.18438002,0.00021917,2]
[328357876,1717230645979,-1640.98,0.00021917,2]
[328357879,1717230645988,-514.18599059,0.00021917,2]
[328357881,1717230645997,-500.0,0.00021917,2]
[328357882,1717230646007,-668.83,0.00021917,2]
[328357883,1717230646016,-500.0,0.00021917,2]
[328357884,1717230646026,-747.29,0.00021917,2]
[328357885,1717230646035,-500.0,0.00021917,2]
[328357886,1717230646045,-614.56607995,0.00021917,2]
[328357887,1717230646054,-500.0,0.00021917,2]
[328357888,1717230646063,-500.0,0.00021917,2]
[328357889,1717230646072,-621.7507902,0.00021917,2]
[328357890,1717230646081,-500.0,0.00021917,2]
[328357891,1717230646090,-516.01522323,0.00021917,2]
[328357892,1717230646099,-500.0,0.00021917,2]
[328357893,1717230646108,-500.0,0.00021917,2]
[328357894,1717230646118,-500.0,0.00021917,2]
[328357895,1717230646127,-422.58433594,0.00021917,2]
[328357896,1717230646136,-500.0,0.00021917,2]
[328357897,1717230646145,-456.49287133,0.00021917,2]
[328357898,1717230646154,-643.73,0.00021917,2]
[328357899,1717230646164,-500.0,0.00021917,2]
[328357900,1717230646173,-500.0,0.00021917,2]
[328357901,1717230646183,-500.0,0.00021917,2]
[328357902,1717230646192,-500.0,0.00021917,2]
[328357903,1717230646201,-500.0,0.00021917,2]
[328357904,1717230646211,-500.0,0.00021917,2]
[328357905,1717230646220,-219.20005887,0.00021917,2]
[328357906,1717230646229,-500.0,0.00021917,2]
[328357907,1717230646238,-500.0,0.00021917,2]
[328357908,1717230646247,-3140.58,0.00021917,2]
[328357909,1717230646257,-2102.95,0.00021917,2]
[328357910,1717230646266,-725.21,0.00021917,2]
[328357911,1717230646276,-500.0,0.00021917,2]
[328357912,1717230646285,-500.0,0.00021917,2]
[328357913,1717230646294,-500.0,0.00021917,2]
[328357914,1717230646303,-500.0,0.00021917,2]
[328357915,1717230646312,-500.0,0.00021917,2]
[328357916,1717230646321,-500.0,0.00021917,2]
[328357917,1717230646330,-500.0,0.00021917,2]
[328357918,1717230646339,-500.0,0.00021917,2]
[328357919,1717230646348,-500.0,0.00021917,2]
[328357920,1717230646358,-500.0,0.00021917,2]
[328357921,1717230646366,-500.0,0.00021917,2]
[328357922,1717230646375,-524.21957669,0.00021917,2]
[328357923,1717230646387,-500.0,0.00021917,2]
[328357924,1717230646413,-151.0,0.00021917,2]
[328357925,1717230646430,-500.0,0.00021917,2]
[328357926,1717230646450,-500.0,0.00021917,2]
[328357927,1717230646473,-926.94,0.00021917,2]
[328357928,1717230646493,-500.0,0.00021917,2]
[328357929,1717230646511,-500.0,0.00021917,2]
[328357930,1717230646529,-500.0,0.00021917,2]
[328357931,1717230646543,-500.0,0.00021917,2]
[328357932,1717230646564,-500.0,0.00021917,2]
[328357933,1717230646584,-500.0,0.00021917,2]
[328357934,1717230646598,-500.0,0.00021917,2]
[328357935,1717230646615,-500.0,0.00021917,2]
[328357936,1717230646631,-500.0,0.00021917,2]
[328357937,1717230646648,-516.57909481,0.00021917,2]
[328357938,1717230646664,-500.0,0.00021917,2]
[328357939,1717230646678,-503.99205385,0.00021917,2]
[328357940,1717230646692,-500.0,0.00021917,2]
[328357941,1717230646708,-880.45,0.00021917,2]
[328357942,1717230646723,-500.0,0.00021917,2]
[328357943,1717230646738,-500.0,0.00021917,2]
[328357944,1717230646754,-500.0,0.00021917,2]
[328357945,1717230646768,-500.0,0.00021917,2]
[328357946,1717230646782,-521.63257525,0.00021917,2]
[328357947,1717230646797,-500.0,0.00021917,2]
[328357948,1717230646812,-500.0,0.00021917,2]
[328357949,1717230646826,-500.0,0.00021917,2]
[328357950,1717230646841,-1540.13,0.00021917,2]
[328357951,1717230646856,-500.0,0.00021917,2]
[328357952,1717230646870,-500.0,0.00021917,2]
[328357953,1717230646884,-500.0,0.00021917,2]
[328357954,1717230646898,-500.0,0.00021917,2]
[328357955,1717230646913,-500.0,0.00021917,2]
[328357956,1717230646926,-500.0,0.00021917,2]
[328357957,1717230646941,-500.73,0.00021917,2]
[328357958,1717230646956,-500.0,0.00021917,2]
[328357959,1717230646970,-500.0,0.00021917,2]
[328357960,1717230646985,-1096.12,0.00021917,2]
[328357961,1717230646999,-500.0,0.00021917,2]
[328357962,1717230647014,-500.0,0.00021917,2]
[328357963,1717230647028,-500.0,0.00021917,2]
[328357964,1717230647042,-500.0,0.00021917,2]
[328357965,1717230647057,-204.62622663,0.00021917,2]
[328357966,1717230647070,-500.0,0.00021917,2]
[328357967,1717230647085,-500.0,0.00021917,2]
[328357968,1717230647099,-500.0,0.00021917,2]
[328357969,1717230647113,-500.0,0.00021917,2]
[328357970,1717230647127,-500.0,0.00021917,2]
[328357971,1717230647142,-500.0,0.00021917,2]
[328357972,1717230647157,-620.96,0.00021917,2]
[328357973,1717230647174,-200.00722861,0.00021917,2]
[328357974,1717230647190,-1380.28,0.00021917,2]
[328357975,1717230647201,-500.0,0.00021917,2]
[328357976,1717230647335,-500.0,0.00021917,2]
[328357977,1717230647344,-500.0,0.00021917,2]
[328357978,1717230647353,-500.0,0.00021917,2]
[328357979,1717230647363,-500.0,0.00021917,2]